bitfinex/quotes_SOLUSD_20240621
["timestamp","ask_amount","ask_price","bid_price","bid_amount"]
[1718947455176,36.60058764,132.81,132.72,0.43053441]
[1718947455343,7.88058764,132.81,132.73,0.51]
[1718947457150,7.88058764,132.81,132.72,0.43053441]
[1718947457356,7.88058764,132.81,132.71,10.7267]
[1718947458577,7.88058764,132.81,132.72,0.17]
[1718947458869,7.88058764,132.81,132.72,0.51]
[1718947459279,7.88058764,132.81,132.73,6.2191]
[1718947459449,7.88058764,132.81,132.74,11.2367]
[1718947460853,0.2286305,132.83,132.74,11.2367]
[1718947461754,0.2286305,132.83,132.75,6.2191]
[1718947462078,0.2286305,132.83,132.77,10.7267]
[1718947462281,0.2286305,132.83,132.78,2.08740155]
[1718947462780,0.2286305,132.83,132.78,0.51]
[1718947466198,0.2286305,132.83,132.79,6.2191]
[1718947466366,0.2286305,132.83,132.8,0.51]
[1718947470790,0.2286305,132.83,132.79,6.2191]
[1718947472000,0.2286305,132.83,132.8,0.34]
[1718947472499,0.2286305,132.83,132.81,0.17]
[1718947481507,0.2286305,132.83,132.81,9.71]
[1718947481678,0.2286305,132.83,132.82,0.34]
[1718947481875,0.2286305,132.83,132.82,0.51]
[1718947488418,0.2286305,132.83,132.82,20.7767]
[1718947489105,0.2286305,132.83,132.82,11.2367]
[1718947489309,0.2286305,132.83,132.82,20.7767]
[1718947492116,0.2286305,132.83,132.82,66.0867]
[1718947492295,0.2286305,132.83,132.82,108.7767]
[1718947496698,0.2286305,132.83,132.82,88.7767]
[1718947497999,0.2286305,132.83,132.82,56.3767]
[1718947498198,0.2286305,132.83,132.82,65.9167]
[1718947499513,0.2286305,132.83,132.82,66.0867]
[1718947500500,0.2286305,132.83,132.8,9.54]
[1718947500691,0.2286305,132.83,132.82,9.54]
[1718947501799,0.2286305,132.83,132.82,9.71]
[1718947502003,0.2286305,132.83,132.82,10.05]
[1718947503901,0.2286305,132.83,132.82,0.51]
[1718947504101,0.2286305,132.83,132.82,10.05]
[1718947504513,0.2286305,132.83,132.82,55.34]
[1718947505837,0.2286305,132.83,132.82,9.88]
[1718947507126,0.2286305,132.83,132.82,10.05]
[1718947508226,0.2286305,132.83,132.82,78.03]
[1718947509624,0.2286305,132.83,132.82,84.0531]
[1718947509808,15.8679,132.95,132.85,6.0218]
[1718947510007,15.8679,132.95,132.9,9.54]
[1718947510236,15.8679,132.95,132.91,1.39275793]
[1718947510528,15.8679,132.95,132.91,10.93275793]
[1718947510716,15.8679,132.95,132.92,0.88269151]
[1718947511225,15.8679,132.95,132.91,10.05]
[1718947511424,15.8679,132.95,132.91,0.51]
[1718947511730,15.8679,132.95,132.91,10.05]
[1718947511928,25.4079,132.95,132.91,0.51]
[1718947512223,15.8679,132.95,132.84,45.29]
[1718947512409,9.54,132.94,132.89,9.54]
[1718947513031,25.4079,132.95,132.86,45.29]
[1718947513328,25.4079,132.95,132.89,9.54]
[1718947513529,15.8679,132.95,132.9,0.51]
[1718947513715,15.8679,132.95,132.9,0.34]
[1718947513917,15.8679,132.95,132.91,0.17]
[1718947514320,15.8679,132.95,132.85,28.6]
[1718947514507,15.8679,132.95,132.86,0.51]
[1718947515122,15.8679,132.95,132.86,0.34]
[1718947515315,15.8679,132.95,132.84,47.48754427]
[1718947515316,15.8679,132.95,132.87,0.17]
[1718947515519,15.8679,132.95,132.85,0.34]
[1718947516616,15.8679,132.95,132.86,0.17]
[1718947524851,15.4604,132.93,132.84,18.06544427]
[1718947525029,6.5299,132.92,132.84,2.19754427]
[1718947525546,6.5299,132.92,132.81,7.32844761]
[1718947525759,6.5299,132.92,132.8,34.8191]
[1718947525920,6.5299,132.92,132.8,104.99730619]
[1718947526121,6.5299,132.92,132.8,111.02130619]
[1718947526338,6.5299,132.92,132.8,82.30730619]
[1718947526539,15.4604,132.91,132.8,76.08820619]
[1718947526728,15.4604,132.91,132.8,91.54860619]
[1718947526925,6.5299,132.9,132.8,91.54860619]
[1718947528217,6.5299,132.9,132.81,0.17]
[1718947528416,6.5299,132.9,132.81,0.51]
[1718947529833,6.5299,132.9,132.82,45.29]
[1718947530024,6.5299,132.9,132.83,97.09]
[1718947531745,15.4604,132.91,132.83,103.1127]
[1718947533041,15.4604,132.91,132.83,97.09]
[1718947533249,15.4604,132.91,132.84,60.7504]
[1718947533544,15.4604,132.91,132.85,0.51]
[1718947537433,15.4604,132.91,132.9,9.53]
[1718947537630,6.395,132.93,132.9,10.04]
[1718947537951,16.6436,132.95,132.92,9.53]
[1718947538135,16.6436,132.95,132.93,0.51]
[1718947541945,0.8323195,132.97,132.93,0.51]
[1718947544755,0.8323195,132.97,132.93,3.50797165]
[1718947545547,0.8323195,132.97,132.94,45.29]
[1718947545743,0.8323195,132.97,132.95,3.50752065]
[1718947545939,0.8323195,132.97,132.96,2.9972952]
[1718947546152,0.8323195,132.97,132.96,3.5072952]
[1718947547146,0.8323195,132.97,132.96,45.8]
[1718947547438,21.729,133.03,132.96,45.8]
[1718947547642,21.729,133.03,132.97,0.51]
[1718947548147,21.729,133.03,132.93,11.30704673]
[1718947548452,22.4941,133.02,132.92,11.30704673]
[1718947548761,22.4941,133.02,132.91,11.30704673]
[1718947549564,22.4941,133.02,132.92,0.51]
[1718947551643,6.3156,133.0,132.89,11.30863421]
[1718947551844,6.3156,133.0,132.88,17.52773421]
[1718947552549,6.3156,133.0,132.88,62.81773421]
[1718947553048,6.3156,133.0,132.89,0.51]
[1718947553247,6.3156,133.0,132.91,45.29]
[1718947553448,6.3156,133.0,132.92,0.51]
[1718947558053,16.654,132.99,132.92,0.51]
[1718947558254,6.436,132.98,132.92,0.34]
[1718947559547,6.436,132.98,132.93,0.17]
[1718947559748,16.654,132.99,132.93,0.17]
[1718947563276,22.5311,133.02,132.93,0.17]
[1718947563464,22.5311,133.02,132.93,1.6729976]
[1718947563659,22.5311,133.02,132.94,0.34]
[1718947563865,22.5311,133.02,132.95,0.17]
[1718947565660,7.86801665,133.05,132.95,0.17]
[1718947565866,21.9079,133.07,132.95,20.17]
[1718947566059,21.9079,133.07,132.96,0.34]
[1718947566265,21.9079,133.07,132.97,0.17]
[1718947567567,6.3222,133.07,132.97,0.17]
[1718947567780,16.1299,133.06,132.97,0.17]
[1718947567976,6.1416,133.05,132.97,0.17]
[1718947569980,16.1299,133.06,132.97,0.17]
[1718947570195,16.1299,133.06,132.97,65.46]
[1718947570365,16.1299,133.06,132.99,6.0153]
[1718947570570,16.1299,133.06,133.0,20.51]
[1718947570795,16.1299,133.06,133.0,20.34]
[1718947570963,16.1299,133.06,133.01,0.17]
[1718947571365,16.1299,133.06,133.01,20.17]
[1718947571579,16.1299,133.06,133.02,0.34]
[1718947571789,16.1299,133.06,133.02,0.17]
[1718947572171,6.6001,133.08,133.01,0.34]
[1718947572473,6.6001,133.08,133.02,0.17]
[1718947574190,15.8954,133.05,132.97,16.1299]
[1718947574411,28.76,133.07,132.93,11.303122]
[1718947574412,15.8954,133.03,132.93,11.303122]
[1718947574706,6.4874,133.0,132.88,76.023022]
[1718947575186,6.4874,133.0,132.88,64.7199]
[1718947575894,15.2029,132.99,132.88,20.0]
[1718947576071,15.2029,132.99,132.88,51.3101]
[1718947576271,15.2029,132.99,132.88,45.29]
[1718947577097,15.2029,132.99,132.89,45.29]
[1718947577283,15.2029,132.99,132.91,51.3091]
[1718947577601,15.2029,132.99,132.92,20.0]
[1718947577904,15.6173,133.03,132.93,0.17]
[1718947578097,15.6173,133.03,132.93,0.51]
[1718947580193,15.6173,133.03,132.93,51.8181]
[1718947580382,15.6173,133.03,132.94,65.29]
[1718947580582,15.6173,133.03,132.95,0.51]
[1718947584194,15.6173,133.03,132.94,20.0]
[1718947584503,15.6173,133.03,132.91,20.0]
[1718947584699,45.51,133.02,132.89,20.0]
[1718947584890,45.51,133.02,132.89,26.0199]
[1718947585078,45.51,133.02,132.9,1.50134844]
[1718947585279,15.6173,133.03,132.9,6.0195]
[1718947585478,15.6173,133.03,132.9,51.3095]
[1718947585684,15.6173,133.03,132.91,6.0189]
[1718947585890,15.6173,133.03,132.92,0.51]
[1718947586103,15.6173,133.03,132.92,6.5286]
[1718947586491,15.6173,133.03,132.93,20.0]
[1718947586691,15.6173,133.03,132.94,0.51]
[1718947588501,15.6173,133.03,132.93,20.0]
[1718947588697,15.6173,133.03,132.9,54.6092]
[1718947588887,15.6173,133.03,132.91,20.0]
[1718947590117,15.6173,133.03,132.92,0.51]
[1718947592422,15.6173,133.03,132.92,0.17]
[1718947593989,15.6173,133.03,132.92,0.51]
[1718947594794,15.6173,133.03,132.92,6.5286]
[1718947594990,15.6173,133.03,132.93,20.0]
[1718947595191,15.6173,133.03,132.94,0.51]
[1718947597204,6.0254,133.02,132.91,20.0]
[1718947597408,16.3087,133.01,132.89,20.0]
[1718947598498,16.3087,133.01,132.9,0.17]
[1718947598692,16.3087,133.01,132.9,0.51]
[1718947598994,6.6462,133.0,132.9,0.17]
[1718947599515,6.6462,133.0,132.89,0.17]
[1718947600189,6.6462,133.0,132.89,0.51]
[1718947602298,6.6462,133.0,132.86,69.79866327]
[1718947602299,6.3888,132.98,132.86,69.79866327]
[1718947602604,16.2299,132.96,132.86,29.89860531]
[1718947602799,16.2299,132.96,132.85,6.0217]
[1718947603318,16.2299,132.96,132.84,6.0221]
[1718947603816,16.2299,132.96,132.85,0.17]
[1718947604019,16.2299,132.96,132.85,0.51]
[1718947604320,16.2299,132.96,132.85,20.51]
[1718947604516,16.2299,132.96,132.85,0.51]
[1718947604813,16.2299,132.96,132.85,20.51]
[1718947605008,6.7288,132.97,132.85,20.0]
[1718947605009,16.2299,132.94,132.85,20.0]
[1718947605201,16.2299,132.94,132.83,20.0]
[1718947606621,16.2299,132.94,132.84,0.51]
[1718947608021,6.3295,132.91,132.81,16.2299]
[1718947608199,6.3295,132.91,132.82,20.0]
[1718947608392,6.3295,132.91,132.8,2.19820619]
[1718947608716,6.3295,132.91,132.79,20.0]
[1718947608890,6.3295,132.91,132.8,45.29]
[1718947609217,6.3295,132.91,132.81,20.0]
[1718947609793,6.3295,132.91,132.82,0.17]
[1718947610094,6.3295,132.91,132.82,0.51]
[1718947612217,16.6657,132.9,132.81,1.30914541]
[1718947612417,16.6657,132.9,132.77,73.88]
[1718947612623,16.6657,132.9,132.77,75.18941873]
[1718947613623,16.6657,132.9,132.78,65.63]
[1718947613836,16.6657,132.9,132.79,0.17]
[1718947614002,16.6657,132.9,132.78,65.29]
[1718947614521,6.1013,132.89,132.78,65.29]
[1718947614996,22.8649,132.85,132.74,30.174785]
[1718947615424,22.8649,132.85,132.74,75.464785]
[1718947615597,22.8649,132.85,132.74,45.29]
[1718947616414,22.8649,132.85,132.75,20.0]
[1718947616612,22.8649,132.85,132.73,66.59980825]
[1718947617599,22.8649,132.85,132.74,0.51]
[1718947625737,15.7997,132.84,132.74,0.51]
[1718947628819,6.5613,132.83,132.74,0.51]
[1718947630524,15.698,132.82,132.74,0.51]
[1718947630730,15.698,132.82,132.73,21.30980825]
[1718947630731,6.258,132.81,132.73,21.30980825]
[1718947630943,6.258,132.81,132.73,20.0]
[1718947631526,6.258,132.81,132.72,20.0]
[1718947632224,6.258,132.81,132.73,0.51]
[1718947637933,6.258,132.81,132.74,45.29]
[1718947638139,6.258,132.81,132.75,20.51]
[1718947641550,6.258,132.81,132.77,9.55]
[1718947641728,6.258,132.81,132.78,0.51]
[1718947642358,6.258,132.81,132.8,9.55]
[1718947642560,6.258,132.81,132.8,0.51]
[1718947643044,6.258,132.81,132.78,29.55]
[1718947643221,6.258,132.81,132.79,0.51]
[1718947644432,15.808,132.81,132.72,45.29]
[1718947644649,15.808,132.81,132.75,9.55]
[1718947644950,15.808,132.81,132.76,20.17]
[1718947645152,15.808,132.81,132.76,29.55]
[1718947645650,15.808,132.81,132.76,20.0]
[1718947645850,15.808,132.81,132.77,0.34]
[1718947646629,6.258,132.81,132.77,0.34]
[1718947647228,6.258,132.81,132.78,0.17]
[1718947653341,6.258,132.81,132.8,9.55]
[1718947653537,15.698,132.82,132.8,10.06]
[1718947653736,15.698,132.82,132.81,10.06]
[1718947654358,15.698,132.82,132.81,0.51]
[1718947657053,15.698,132.82,132.81,0.34]
[1718947659550,15.698,132.82,132.81,0.51]
[1718947659975,6.5384,132.85,132.81,10.06]
[1718947660187,6.5384,132.85,132.84,9.55]
[1718947660369,6.5384,132.85,132.84,10.06]
[1718947662269,6.5384,132.85,132.84,0.51]
[1718947662472,16.5823,132.86,132.84,0.51]
[1718947662650,16.5823,132.86,132.85,0.51]
[1718947665778,16.5823,132.86,132.79,38.2]
[1718947666080,16.5823,132.86,132.81,9.55]
[1718947666266,16.5823,132.86,132.82,20.0]
[1718947666992,16.5823,132.86,132.83,0.17]
[1718947667279,16.5823,132.86,132.83,0.51]
[1718947669776,14.54505417,132.86,132.83,0.51]
[1718947671375,14.54505417,132.86,132.77,45.29]
[1718947671571,14.54505417,132.86,132.82,9.55]
[1718947671770,24.09505417,132.86,132.81,0.51]
[1718947671972,24.09505417,132.86,132.82,0.17]
[1718947673578,24.09505417,132.86,132.81,20.34]
[1718947673788,9.55,132.85,132.81,20.17]
[1718947674159,9.55,132.85,132.81,0.17]
[1718947676264,14.54505417,132.86,132.81,0.17]
[1718947676465,24.09505417,132.86,132.81,0.17]
[1718947676980,14.54505417,132.86,132.81,0.17]
[1718947677182,14.54505417,132.86,132.82,9.55]
[1718947677476,14.54505417,132.86,132.83,29.89]
[1718947677708,14.54505417,132.86,132.84,9.72]
[1718947677878,14.54505417,132.86,132.85,20.0]
[1718947678685,14.54505417,132.86,132.85,0.17]
[1718947678887,14.54505417,132.86,132.85,0.51]
[1718947679179,14.54505417,132.86,132.85,0.17]
[1718947679485,14.54505417,132.86,132.85,0.51]
[1718947681662,14.54505417,132.86,132.84,20.0]
[1718947682062,14.54505417,132.86,132.82,20.0]
[1718947682262,14.54505417,132.86,132.82,29.55]
[1718947682880,14.54505417,132.86,132.82,20.0]
[1718947683072,14.54505417,132.86,132.81,9.55]
[1718947683266,14.54505417,132.86,132.76,45.29]
[1718947683267,24.09505417,132.86,132.8,9.55]
[1718947683584,24.09505417,132.86,132.81,20.0]
[1718947684194,14.54505417,132.86,132.81,20.0]
[1718947684370,14.54505417,132.86,132.82,10.06]
[1718947684570,14.54505417,132.86,132.83,20.0]
[1718947685096,14.54505417,132.86,132.82,20.51]
[1718947685269,14.54505417,132.86,132.83,9.55]
[1718947685473,14.54505417,132.86,132.84,20.34]
[1718947686301,14.54505417,132.86,132.84,0.34]
[1718947688899,14.54505417,132.86,132.84,20.34]
[1718947689202,14.54505417,132.86,132.84,20.0]
[1718947689404,14.54505417,132.86,132.82,20.17]
[1718947689780,14.54505417,132.86,132.82,0.17]
[1718947689997,14.54505417,132.86,132.82,20.17]
[1718947692009,14.54505417,132.86,132.83,0.17]
[1718947692183,14.54505417,132.86,132.83,9.89]
[1718947692386,14.54505417,132.86,132.84,20.17]
[1718947694898,14.54505417,132.86,132.85,0.17]
[1718947695098,14.54505417,132.86,132.85,0.34]
[1718947695576,14.54505417,132.86,132.85,0.17]
[1718947695999,14.54505417,132.86,132.84,20.17]
[1718947696201,14.54505417,132.86,132.84,0.17]
[1718947697576,6.015,132.88,132.84,0.17]
[1718947697808,6.015,132.88,132.84,9.72]
[1718947698111,6.015,132.88,132.85,20.34]
[1718947699617,6.015,132.88,132.85,0.34]
[1718947700504,15.565,132.88,132.85,0.34]
[1718947701819,6.015,132.88,132.85,0.34]
[1718947703715,9.55,132.89,132.86,0.17]
[1718947703900,24.9748,132.9,132.86,0.17]
[1718947704294,9.55,132.89,132.86,0.17]
[1718947705793,15.4248,132.9,132.86,0.17]
[1718947706202,24.9748,132.9,132.86,0.17]
[1718947706516,24.9748,132.9,132.85,20.34]
[1718947707318,24.9748,132.9,132.86,0.17]
[1718947709414,15.4248,132.9,132.86,0.17]
[1718947710112,24.9748,132.9,132.86,0.17]
[1718947716691,15.4248,132.9,132.85,20.0]
[1718947716895,9.55,132.87,132.86,20.0]
[1718947717114,9.55,132.87,132.81,20.0]
[1718947717316,9.55,132.87,132.81,29.55]
[1718947718232,9.55,132.87,132.82,0.51]
[1718947718392,9.55,132.87,132.82,0.34]
[1718947719599,9.55,132.87,132.83,0.17]
[1718947720500,9.55,132.87,132.83,20.17]
[1718947720811,9.55,132.87,132.84,0.34]
[1718947721129,9.55,132.85,132.83,20.0]
[1718947721307,9.55,132.84,132.78,29.55]
[1718947721914,9.55,132.84,132.78,20.0]
[1718947722121,9.55,132.84,132.78,9.55]
[1718947723025,9.55,132.84,132.79,0.17]
[1718947723228,9.55,132.84,132.79,0.51]
[1718947724024,9.55,132.83,132.79,0.51]
[1718947726018,9.55,132.84,132.79,0.51]
[1718947726322,9.55,132.84,132.79,10.06]
[1718947726528,9.55,132.84,132.8,20.0]
[1718947727111,9.55,132.84,132.79,20.51]
[1718947727632,16.2654,132.85,132.79,30.06]
[1718947727805,25.8154,132.85,132.79,30.06]
[1718947728314,9.55,132.84,132.79,30.06]
[1718947728512,16.2654,132.85,132.79,30.06]
[1718947728824,25.8154,132.85,132.79,30.06]
[1718947729336,25.8154,132.85,132.8,9.55]
[1718947729503,25.8154,132.85,132.81,20.51]
[1718947729923,16.2444,132.88,132.81,30.06]
[1718947730123,25.7944,132.88,132.82,9.55]
[1718947730315,25.7944,132.88,132.83,20.51]
[1718947731112,16.2444,132.88,132.83,20.51]
[1718947731331,25.7944,132.88,132.83,20.51]
[1718947733411,25.7944,132.88,132.84,20.0]
[1718947734355,9.55,132.88,132.85,0.17]
[1718947734519,9.55,132.88,132.85,0.51]
[1718947735347,15.8739,132.89,132.85,0.51]
[1718947736754,9.55,132.89,132.85,0.51]
[1718947737848,15.1827,132.91,132.85,0.51]
[1718947738343,14.53925589,132.92,132.86,9.55]
[1718947738532,16.2123,132.92,132.87,30.06]
[1718947738850,16.2123,132.92,132.88,20.17]
[1718947738851,9.55,132.92,132.88,20.17]
[1718947739942,9.55,132.92,132.88,0.17]
[1718947741019,15.1827,132.94,132.88,0.17]
[1718947741222,9.55,132.92,132.88,0.34]
[1718947741618,9.55,132.92,132.89,0.17]
[1718947741837,9.55,132.92,132.89,0.34]
[1718947742939,9.55,132.92,132.9,0.17]
[1718947745854,9.55,132.93,132.9,0.17]
[1718947748855,9.55,132.93,132.89,0.34]
[1718947749154,9.55,132.93,132.88,0.51]
[1718947752453,15.1827,132.94,132.88,0.51]
[1718947752649,9.55,132.93,132.88,0.51]
[1718947752961,15.5859,132.98,132.91,9.55]
[1718947753150,15.5859,132.98,132.92,20.17]
[1718947753350,25.1359,132.98,132.92,29.72]
[1718947754068,9.55,132.97,132.92,20.17]
[1718947755446,9.55,132.97,132.92,29.72]
[1718947755844,15.5859,132.98,132.92,29.72]
[1718947756046,9.55,132.97,132.93,0.34]
[1718947756357,7.87190732,133.01,132.93,9.89]
[1718947756531,9.55,132.99,132.94,0.17]
[1718947756937,9.55,132.98,132.94,20.17]
[1718947760171,255.1,132.97,132.94,20.17]
[1718947763565,9.55,132.98,132.94,20.17]
[1718947763861,9.55,132.99,132.94,20.17]
[1718947764240,9.55,132.99,132.95,0.34]
[1718947768460,13.83277682,133.01,132.94,20.0]
[1718947768461,9.55,132.97,132.94,20.0]
[1718947768659,9.55,132.97,132.91,29.55]
[1718947769868,9.55,132.97,132.92,10.06]
[1718947770362,9.55,132.97,132.93,20.0]
[1718947771758,13.83277682,133.01,132.94,0.51]
[1718947771759,9.55,132.98,132.94,0.51]
[1718947772971,13.83277682,133.01,132.94,0.51]
[1718947773357,9.55,132.99,132.94,0.51]
[1718947774075,13.83277682,133.01,132.94,0.51]
[1718947774376,9.55,132.99,132.94,0.51]
[1718947775093,9.55,132.97,132.93,20.0]
[1718947775372,9.55,132.95,132.91,20.0]
[1718947776768,9.55,132.94,132.91,20.0]
[1718947776968,16.0808,132.97,132.91,20.0]
[1718947777463,9.55,132.95,132.91,20.0]
[1718947777665,16.0808,132.97,132.91,20.0]
[1718947777864,9.55,132.95,132.91,20.0]
[1718947780567,16.0808,132.97,132.91,20.0]
[1718947780770,9.55,132.95,132.91,20.0]
[1718947780962,9.55,132.94,132.91,20.0]
[1718947783483,9.55,132.95,132.91,20.0]
[1718947786982,9.55,132.94,132.91,20.0]
[1718947787167,9.55,132.93,132.91,20.0]
[1718947787786,9.55,132.94,132.91,20.0]
[1718947788757,9.55,132.95,132.91,20.0]
[1718947790082,6.2154,132.98,132.92,0.51]
[1718947790281,9.55,132.96,132.92,0.51]
[1718947793567,15.0404,132.99,132.92,0.51]
[1718947793766,9.55,132.97,132.92,0.51]
[1718947794183,9.55,132.96,132.92,0.51]
[1718947794382,15.0404,132.99,132.92,0.51]
[1718947794578,9.55,132.97,132.92,0.51]
[1718947797485,15.0404,132.99,132.92,0.51]
[1718947797810,9.55,132.96,132.92,0.51]
[1718947799377,9.55,132.97,132.92,0.51]
[1718947801486,7.87116756,133.02,132.95,9.55]
[1718947801672,15.5257,133.03,132.96,30.06]
[1718947802097,9.55,133.02,132.96,30.06]
[1718947802706,9.55,133.01,132.96,20.51]
[1718947802875,9.55,133.0,132.96,20.51]
[1718947804190,12.12312125,133.05,132.96,20.51]
[1718947804399,12.12312125,133.05,132.96,30.06]
[1718947804400,9.55,133.01,132.96,30.06]
[1718947804707,6.1501,133.05,132.96,30.06]
[1718947804881,9.55,133.02,132.96,30.06]
[1718947809506,9.55,133.02,132.96,20.51]
[1718947809814,9.55,133.02,132.96,30.06]
[1718947809993,9.55,133.02,132.96,20.51]
[1718947810187,6.1501,133.05,132.96,20.51]
[1718947810188,9.55,133.01,132.96,20.51]
[1718947810383,9.55,132.98,132.96,20.0]
[1718947810587,9.55,132.98,132.94,20.0]
[1718947812286,9.55,132.97,132.93,20.0]
[1718947813504,9.55,132.95,132.93,20.0]
[1718947813688,9.55,132.95,132.91,12.7639]
[1718947813689,9.55,132.95,132.92,20.0]
[1718947814023,9.55,132.96,132.92,20.0]
[1718947815091,9.55,132.97,132.92,20.0]
[1718947815312,9.55,132.98,132.93,0.51]
[1718947815995,6.3344,133.0,132.93,0.51]
[1718947815996,9.55,132.99,132.93,10.06]
[1718947816199,9.55,132.99,132.94,20.0]
[1718947818580,7.87079665,133.02,132.94,29.55]
[1718947818888,9.55,133.0,132.95,0.51]
[1718947819895,277.7444,133.03,132.95,0.51]
[1718947820215,9.55,133.0,132.95,0.51]
[1718947820387,283.70209197,133.03,132.95,0.51]
[1718947820588,9.55,133.0,132.95,0.51]
[1718947821613,9.55,133.0,132.96,12.7639]
[1718947821795,255.1,133.03,132.99,9.55]
[1718947821997,255.1,133.03,133.0,20.0]
[1718947822911,255.1,133.03,132.99,20.0]
[1718947823497,15.7184,133.06,133.0,0.17]
[1718947823698,15.7184,133.06,133.0,0.51]
[1718947824130,0.8323195,133.1,133.03,9.55]
[1718947824417,25.577,133.09,133.04,20.51]
[1718947824827,25.577,133.09,133.04,30.06]
[1718947824997,9.55,133.09,133.04,30.06]
[1718947825517,9.55,133.09,133.04,20.51]
[1718947825687,0.8323195,133.1,133.04,20.51]
[1718947825891,9.55,133.08,133.04,20.51]
[1718947826201,0.8323195,133.1,133.04,20.51]
[1718947826400,9.55,133.09,133.04,20.51]
[1718947828119,0.8323195,133.1,133.04,20.51]
[1718947828321,9.55,133.09,133.04,20.51]
[1718947829221,0.8323195,133.1,133.04,20.51]
[1718947829398,9.55,133.09,133.04,20.51]
[1718947829788,0.8323195,133.1,133.04,20.51]
[1718947830024,9.55,133.09,133.04,30.06]
[1718947830901,9.55,133.09,133.04,20.51]
[1718947832514,9.55,133.09,133.04,20.0]
[1718947832710,9.55,133.06,133.02,20.0]
[1718947833732,9.55,133.04,132.97,18.9024]
[1718947833911,9.55,133.04,132.98,9.55]
[1718947834218,0.8323195,133.1,132.98,9.55]
[1718947834408,0.8323195,133.1,132.99,9.55]
[1718947834604,0.8323195,133.1,133.01,9.55]
[1718947834829,9.55,133.07,133.01,9.55]
[1718947835036,0.8323195,133.1,132.97,18.9024]
[1718947835037,9.55,133.06,132.97,18.9024]
[1718947835225,9.55,133.06,133.0,9.55]
[1718947835426,9.55,133.06,133.01,20.0]
[1718947835628,9.55,133.06,133.01,20.17]
[1718947836426,9.55,133.04,133.01,20.0]
[1718947836740,9.55,133.04,132.98,29.55]
[1718947836942,9.55,133.02,132.98,20.0]
[1718947837126,9.55,133.0,132.98,20.0]
[1718947837430,9.55,133.0,132.96,20.0]
[1718947838015,9.55,133.01,132.96,20.0]
[1718947838218,9.55,133.01,132.97,0.34]
[1718947838419,16.1823,133.06,132.97,9.89]
[1718947838634,9.55,133.03,132.98,20.17]
[1718947838821,9.55,133.03,132.99,0.17]
[1718947839023,9.55,133.03,132.99,0.34]
[1718947839241,9.55,133.03,132.98,20.0]
[1718947839440,9.55,133.03,132.93,58.0239]
[1718947839441,9.55,133.02,132.97,9.55]
[1718947839635,9.55,133.02,132.98,20.0]
[1718947840359,16.1823,133.06,132.97,29.55]